Cogmind - Beta 13 @@@ ROGUE MODE // 2024.04.08 @ 18:07:08 Player: SovietPaperclip Result: Destroyed by H-66 Slayer with Heavy Assault Rifle Performance ------------- Evolutions (5) 2500 Regions Visited (17) 3400 Robots Destroyed (91) 455 Value Destroyed (2450) 2450 Prototype IDs (32) 640 Alien Tech Used (0) 0 Bonus (270) 270 TOTAL SCORE: 9715 Bonus ------- Follower Combat Kills 270 Cogmind --------- Core Integrity 0/1000 Matter 35/300 Energy 100/100 System Corruption 0% Temperature Cool (0) Movement Core (50) Location -5/Factory Parts ------- > --- POWER (1) -------- (None) > --- PROPULSION (6) --- (None) > --- UTILITY (8) ------ Hacking Suite Hacking Suite > --- WEAPON (2) ------- (None) > --- INVENTORY (5) ---- Light Angular Momentum Engine Field Propulsion Drive Improved System Shield Improved System Restoration Module Heavy Machine Gun Peak State ------------ > --- POWER ------------ Cooled Deuterium Engine > --- PROPULSION ------- Potential Leg Potential Leg Aerolev Unit Gravmag System Gravmag System > --- UTILITY ---------- Large Storage Unit Improved Signal Interpreter Hacking Suite Makeshift System Shield System Restoration Module > --- WEAPON ----------- Precision Assault Rifle Makeshift Hammer > --- INVENTORY -------- Micro Nuclear Core Improved VTOL Module Improved VTOL Module Xenon Bombardment Thruster Xenon Bombardment Thruster Improved Cesium-ion Thruster Advanced Weight Redist. System Structural Scanner Improved Sensor Array Improved Light Armor Plating Makeshift System Shield System Restoration Module Heavy Missile Launcher [Rating: 65] Favorites ----------- Power Light Nuclear Core Engine Cooled Deuterium Engine Power Core Light Nuclear Core Propulsion Light Treads Treads Light Treads Leg Potential Leg Hover Unit Aerolev Unit Flight Unit Xenon Bombardment Thruster Utility Hacking Suite Device Improved Sensor Array Storage High-capacity Storage Unit Processor Improved Signal Interpreter Hackware Hacking Suite Protection Light Armor Plating Weapon Beam Cannon Energy Gun Beamcaster Energy Cannon Beam Cannon Ballistic Gun Light Assault Rifle Launcher Heavy Missile Launcher Impact Weapon Makeshift Hammer Slashing Weapon Katana Build | -11 -10 -10 -10 -9 -8 -7 -7 -7 -7 -6 -6 -6 -6 -6 -6 -6 -5 ------- Run | Yrd Mat Min Exi Min Mat Fac Low Low Zio Pro Fac Was Fac Ext Cet Arc Fac Slots Evolved 10 | . . . . . 4 2 . . . . 2 . . . . . 2 Power . | . . . . . . . . . . . . . . . . . . Propulsion 4 | . . . . . 2 1 . . . . . . . . . . 1 Utility 6 | . . . . . 2 1 . . . . 2 . . . . . 1 Weapon . | . . . . . . . . . . . . . . . . . . Parts Attached 164 | 6 8 5 3 . 16 85 2 . 2 5 4 . 10 8 9 . 1 Power 10 | 1 1 . . . 1 5 . . . 1 . . . 1 . . . Engine 4 | 1 . . . . 1 2 . . . . . . . . . . . Core 6 | . 1 . . . . 3 . . . 1 . . . 1 . . . Reactor . | . . . . . . . . . . . . . . . . . . Propulsion 46 | 2 2 . 2 . 8 21 . . . . 1 . 2 4 3 . 1 Treads 2 | . 2 . . . . . . . . . . . . . . . . Leg 15 | 2 . . 2 . 7 2 . . . . . . . . 2 . . Wheel . | . . . . . . . . . . . . . . . . . . Hover 12 | . . . . . . 12 . . . . . . . . . . . Flight 17 | . . . . . 1 7 . . . . 1 . 2 4 1 . 1 Utility 67 | 1 3 1 . . 3 46 1 . . 2 2 . 2 3 3 . . Device 45 | . 2 . . . 1 37 . . . 1 1 . 1 2 . . . Storage 3 | 1 1 . . . . 1 . . . . . . . . . . . Processor 2 | . . . . . 1 1 . . . . . . . . . . . Hackware 8 | . . . . . . 2 1 . . . 1 . 1 . 3 . . Protection 9 | . . 1 . . 1 5 . . . 1 . . . 1 . . . Artifact . | . . . . . . . . . . . . . . . . . . Weapon 41 | 2 2 4 1 . 4 13 1 . 2 2 1 . 6 . 3 . . Energy Gun 3 | . . . . . 1 2 . . . . . . . . . . . Energy Cannon 1 | . 1 . . . . . . . . . . . . . . . . Ballistic Gun 11 | 2 1 2 1 . 2 3 . . . . . . . . . . . Ballistic Cannon . | . . . . . . . . . . . . . . . . . . Launcher 12 | . . 2 . . 1 1 1 . 2 2 . . 1 . 2 . . Special Weapon . | . . . . . . . . . . . . . . . . . . Impact Weapon 12 | . . . . . . 7 . . . . 1 . 3 . 1 . . Slashing Weapon 2 | . . . . . . . . . . . . . 2 . . . . Piercing Weapon . | . . . . . . . . . . . . . . . . . . Special Melee Weapon . | . . . . . . . . . . . . . . . . . . Unidentified Prototypes 6 | . . . 1 . 1 3 . . 1 . . . . . . . . Parts Lost 42 | . 2 . . . 7 5 1 . . 1 . . 1 7 9 2 7 Power 5 | . 1 . . . 1 . . . . 1 . . . 1 1 . . Propulsion 18 | . . . . . 2 5 . . . . . . . 4 3 1 3 Utility 13 | . . . . . 1 . 1 . . . . . 1 2 4 . 4 Weapon 6 | . 1 . . . 3 . . . . . . . . . 1 1 . Highest Loss Streak 7 | . 1 . . . 6 2 1 . . 1 . . 1 6 7 2 6 To Critical Strikes 2 | . . . . . 2 . . . . . . . . . . . . Average Slot Usage (%) 93 | . 98 100 100 100 90 94 84 84 84 85 86 86 90 90 76 74 47 Engine 2 | . 6 . . . 3 4 . . . . . . . . . . . Core 7 | . 7 14 14 14 5 2 7 7 7 6 6 6 6 5 1 . . Treads 9 | . 21 28 9 . . . . . . . . . . . . . . Leg 6 | . 6 . 18 28 30 3 . . . . . . . . 4 13 3 Hover 6 | . . . . . . 29 . . . . . . . . . . . Flight 8 | . . . . . . 4 38 38 38 38 33 33 33 32 23 18 12 Device 7 | . 13 1 . . 9 6 7 7 7 6 13 13 11 12 7 6 4 Storage 10 | . 14 14 14 14 9 7 7 7 7 7 6 6 6 6 6 6 2 Processor 3 | . . . . . 9 7 7 7 7 7 6 6 6 6 6 6 4 Hackware 8 | . . . . . . 14 15 15 15 15 20 20 20 18 16 20 16 Protection 3 | . . 12 14 14 5 . . . . . . . . 1 1 . . Energy Cannon 4 | . 6 14 14 14 2 . . . . . . . . . . . . Ballistic Gun 9 | . 21 12 14 14 12 4 . . . . . . . . . . . Impact Weapon 1 | . . . . . . 6 . . . . . . . . 3 . . Naked Turns . | . . . . . . . . . . . . . . . . . . Heaviest Build 58 | 11 50 54 54 53 58 41 27 27 27 34 28 28 36 33 34 27 20 Greatest Support 90 | 20 40 40 60 60 90 60 28 28 28 28 28 28 30 38 60 60 60 Greatest Overweight (x) 6 | . 2 1 1 . . 1 . . . 1 . . 1 . 2 . 6 Average Overweight (x) . | . 1 1 . . . . . . . . . . . . . . . Largest Inventory Capacity 20 | 8 20 20 20 20 20 20 15 15 15 15 15 15 15 15 15 15 15 Average Capacity 17 | 6 19 20 20 20 20 15 15 15 15 15 15 15 15 15 15 15 10 Most Carried 18 | 4 9 13 15 13 16 18 15 15 15 15 15 15 15 15 9 2 7 Average Carried 11 | 1 7 12 12 13 11 13 14 15 14 14 14 15 13 13 4 1 4 Final Capacity 20 | 8 20 20 20 20 20 15 15 15 15 15 15 15 15 15 15 15 5 Final Carried 16 | 2 9 13 13 13 16 13 15 15 15 14 15 15 15 9 1 2 5 Class Distribution -------------------- 34% | Mutant 26% | Hacker-Mutant 16% | Scavenger-Mutant 12% | Hacker-Sprinter 9% | Hacker-Scout Dominant Class ---------------- Mutant | -10/Materials Scavenger-Mutant | -10/Mines Mutant | -10/Exiles Mutant | -9/Mines Scavenger-Mutant | -8/Materials Hacker-Mutant | -7/Factory Hacker-Sprinter | -7/Lower Caves Hacker-Sprinter | -7/Lower Caves Hacker-Sprinter | -7/Zion Hacker-Sprinter | -6/Proximity Caves Hacker-Scout | -6/Factory Hacker-Scout | -6/Waste Hacker-Scout | -6/Factory Hacker-Scout | -6/Extension Hacker-Mutant | -6/Cetus Hacker-Mutant | -6/Archives Hacker-Mutant | -5/Factory Resources | -11 -10 -10 -10 -9 -8 -7 -7 -7 -7 -6 -6 -6 -6 -6 -6 -6 -5 ----------- Run | Yrd Mat Min Exi Min Mat Fac Low Low Zio Pro Fac Was Fac Ext Cet Arc Fac Matter Collected 2184 | 260 255 51 90 40 316 708 79 18 33 34 51 . 184 33 32 . . Remotely . | . . . . . . . . . . . . . . . . . . Salvage Created 3209 | . 778 21 259 83 545 997 45 . . 99 . . 219 55 108 . . Parts 152 | . 47 3 9 1 40 21 8 . . 8 . . 8 6 1 . . Haulers Intercepted 9 | . 2 . . . 2 3 . . . . . . 2 . . . . Recyclers Shooed 2 | . 1 . . . . 1 . . . . . . . . . . . Parts Field Recycled . | . . . . . . . . . . . . . . . . . . Retrieved Matter . | . . . . . . . . . . . . . . . . . . Parts Self-Destructed 14 | . . . . . . . 7 . . 7 . . . . . . . Prevented 4 | . . . . . . . 4 . . . . . . . . . . Kills | -11 -10 -10 -10 -9 -8 -7 -7 -7 -7 -6 -6 -6 -6 -6 -6 -6 -5 ------- Run | Yrd Mat Min Exi Min Mat Fac Low Low Zio Pro Fac Was Fac Ext Cet Arc Fac Combat Hostiles Destroyed 53 | . 12 1 1 2 11 11 4 . . 5 . . 3 . 3 . . Melee 6 | . . . . . . 6 . . . . . . . . . . . Guns 22 | . 10 . 1 1 10 . . . . . . . . . . . . Cannons 4 | . 2 . . 1 1 . . . . . . . . . . . . AOE 17 | . . 1 . . . 1 4 . . 5 . . 3 . 3 . . Classes Destroyed 13 | . 6 2 . 1 2 1 . . . . . . . . 1 . . Worker 6 | . 1 . . . 1 4 . . . . . . . . . . . Builder 7 | . . 1 . . 1 5 . . . . . . . . . . . Hauler 9 | . 2 . . . 2 3 . . . . . . 2 . . . . Recycler 3 | . 1 . . . . 2 . . . . . . . . . . . Operator 6 | . 2 . . . . 3 . . . . . . . 1 . . . Watcher 7 | . 2 . . . 1 2 . . . . . . . 1 1 . . Swarmer 15 | . . 1 . . 3 . 4 . . 4 . . 3 . . . . Grunt 28 | . 12 . 1 1 4 7 . . . 1 . . . . 2 . . Brawler 1 | . . . . . . . . . . . . . . . 1 . . Duelist 1 | . . . . 1 . . . . . . . . . . . . . Sentry 3 | . . . . . 3 . . . . . . . . . . . . Hunter 2 | . . . . . 1 1 . . . . . . . . . . . Programmer 3 | . . . . . . 3 . . . . . . . . . . . Best Kill Streak 10 | . 3 2 1 2 10 4 4 . . 4 . . 3 1 3 . . Combat Bots Only 6 | . 3 1 1 2 6 4 4 . . 4 . . 3 . 3 . . Max Kills in Single Turn 4 | . 2 2 1 1 3 1 2 . . 4 . . 2 1 2 . . Gunslinging 1 | . . . . . 1 . . . . . . . . . . . . Exploded 4 | . . 1 . . . 1 2 . . 4 . . 2 . 2 . . Melee 1 | . . . . . . 1 . . . . . . . . . . . Uniques/NPCs Destroyed . | . . . . . . . . . . . . . . . . . . Combat | -11 -10 -10 -10 -9 -8 -7 -7 -7 -7 -6 -6 -6 -6 -6 -6 -6 -5 -------- Run | Yrd Mat Min Exi Min Mat Fac Low Low Zio Pro Fac Was Fac Ext Cet Arc Fac Hostile Shots Fired 579 | . 65 6 . 9 92 102 16 . . 19 . . 38 81 10 47 94 Missed 231 | . 17 1 . 3 25 46 9 . . 8 . . 26 46 4 21 25 Damage Taken 6588 | . 639 56 . 105 943 1097 108 . . 205 . . 203 569 878 601 1184 Core 2334 | . 103 15 . 30 167 197 45 . . 38 . . 84 188 206 255 1006 Absorbed by Shields . | . . . . . . . . . . . . . . . . . . Core Remaining (%) 56 | 100 . . . 40 69 . . . . 60 . . . . . 13 . Volleys Fired 150 | . 68 2 17 6 36 6 2 . . 6 . . 2 . 5 . . Largest 2 | . 2 2 2 2 2 1 1 . . 1 . . 1 . 1 . . Hottest 103 | . 80 90 83 84 103 75 39 . . 39 . . 39 . 39 . . Shots Fired 276 | . 136 4 34 12 69 6 2 . . 6 . . 2 . 5 . . Gun 202 | . 119 . 17 6 57 3 . . . . . . . . . . . Cannon 51 | . 17 2 17 6 9 . . . . . . . . . . . . Launcher 23 | . . 2 . . 3 3 2 . . 6 . . 2 . 5 . . Special . | . . . . . . . . . . . . . . . . . . Kinetic 196 | . 119 . 17 6 54 . . . . . . . . . . . . Thermal 57 | . 17 2 17 6 12 3 . . . . . . . . . . . Explosive 23 | . . 2 . . 3 3 2 . . 6 . . 2 . 5 . . Electromagnetic . | . . . . . . . . . . . . . . . . . . Robot Hit Streak 15 | . 10 1 15 7 9 2 . . . 5 . . . . 3 . . Robot Miss Streak 7 | . 6 7 3 2 2 1 3 . . 4 . . 2 . 1 . . Penetration Max 1 | . . . . . 1 . . . . . . . . . . . . Secondary Targets 3 | . 1 . . . 2 . . . . . . . . . . . . Max Gunslinging Chain 1 | . 1 . . . 1 . . . . . . . . . . . . Shots Hit Robots 240 | . 84 1 23 10 53 51 . . . 5 . . 4 4 5 . . Core Hits 128 | . 43 1 10 4 33 9 5 . . 7 . . 6 2 8 . . Critical Kills . | . . . . . . . . . . . . . . . . . . Critical Parts Destroyed 12 | . 1 . 1 . . 9 . . . . . . . . 1 . . Critical Strikes 12 | . 1 . 1 . . 9 . . . . . . . . 1 . . Destroy 2 | . 1 . 1 . . . . . . . . . . . . . . Smash 10 | . . . . . . 9 . . . . . . . . 1 . . Melee Attacks 207 | . . . . . . 152 . . . . 1 . 28 6 20 . . Impact 176 | . . . . . . 152 . . . . 1 . 3 . 20 . . Slashing 31 | . . . . . . . . . . . . . 25 6 . . . Piercing . | . . . . . . . . . . . . . . . . . . Sneak Attacks 18 | . . . . . . 15 . . . . . . 2 1 . . . Combat Hostiles . | . . . . . . . . . . . . . . . . . . Follow-up Attacks . | . . . . . . . . . . . . . . . . . . Damage Inflicted 7961 | . 1007 83 362 196 1202 3150 270 . . 506 . . 400 207 578 . . Guns 1985 | . 781 . 170 109 883 42 . . . . . . . . . . . Cannons 664 | . 226 . 192 87 159 . . . . . . . . . . . . Explosions 1775 | . . 83 . . 160 108 270 . . 506 . . 117 . 531 . . Melee 3537 | . . . . . . 3000 . . . . . . 283 207 47 . . Ramming . | . . . . . . . . . . . . . . . . . . Kinetic 1921 | . 781 . 170 109 861 . . . . . . . . . . . . Thermal 728 | . 226 . 192 87 181 42 . . . . . . . . . . . Explosive 1775 | . . 83 . . 160 108 270 . . 506 . . 117 . 531 . . Electromagnetic . | . . . . . . . . . . . . . . . . . . Impact 3223 | . . . . . . 3000 . . . . . . 176 . 47 . . Slashing 314 | . . . . . . . . . . . . . 107 207 . . . Piercing . | . . . . . . . . . . . . . . . . . . Highest Corruption 21 | . . . . . . 6 . . . . . . . . 21 21 . Average Corruption 9 | . . . . . . 3 . . . . . . . . 20 21 . Corruption Purged 6 | . . . . . . 6 . . . . . . . . . . . Corruption Blocked . | . . . . . . . . . . . . . . . . . . Effects 17 | . . . . . . 6 . . . . . . . . 7 4 . Message Errors 2 | . . . . . . 1 . . . . . . . . 1 . . Matter Fused 7 | . . . . . . 3 . . . . . . . . 4 . . Heat Flow Errors 1 | . . . . . . 1 . . . . . . . . . . . Energy Discharges 3 | . . . . . . 1 . . . . . . . . 1 1 . Data Loss (minor) 1 | . . . . . . . . . . . . . . . . 1 . Data Loss (major) 1 | . . . . . . . . . . . . . . . 1 . . Alerts 1 | . . . . . . . . . . . . . . . . 1 . Misdirections 1 | . . . . . . . . . . . . . . . . 1 . Overload Shots . | . . . . . . . . . . . . . . . . . . Overflow Damage 1624 | . 7 41 . . . 1448 22 . . . . . 25 22 59 . . Projectiles 7 | . 7 . . . . . . . . . . . . . . . . Explosions 75 | . . 41 . . . . 22 . . . . . . . 12 . . Melee 1542 | . . . . . . 1448 . . . . . . 25 22 47 . . Knockbacks 20 | . . . . . . 20 . . . . . . . . . . . Impact 16 | . . . . . . 16 . . . . . . . . . . . Kinetic . | . . . . . . . . . . . . . . . . . . Secondary 4 | . . . . . . 4 . . . . . . . . . . . Self-Inflicted Damage 61 | . . . . . . . 26 . . . . . . . 35 . . Shots 3 | . . . . . . . 1 . . . . . . . 2 . . Rammed . | . . . . . . . . . . . . . . . . . . Targets Rammed . | . . . . . . . . . . . . . . . . . . Kicked . | . . . . . . . . . . . . . . . . . . Crushed . | . . . . . . . . . . . . . . . . . . Highest Temperature 271 | . 62 90 248 228 271 189 34 47 88 78 3 3 9 39 22 . . Average Temperature 46 | . 19 46 131 104 118 17 14 24 32 32 3 2 5 9 11 . . Received Heat Transfer 1584 | . 390 9 . 24 414 249 6 . . 63 . . 63 78 45 135 108 Effects 1 | . . . . . 1 . . . . . . . . . . . . Interference 1 | . . . . . 1 . . . . . . . . . . . . Siege Activations . | . . . . . . . . . . . . . . . . . . Robots Corrupted . | . . . . . . . . . . . . . . . . . . Combat Hostiles . | . . . . . . . . . . . . . . . . . . Parts Fried 26 | . . . . . . 25 . . . . . . . . 1 . . Impact Corruptions 53 | . . . . . . 51 . . . . . . . . 2 . . Robots Melted . | . . . . . . . . . . . . . . . . . . Combat Hostiles . | . . . . . . . . . . . . . . . . . . Parts Melted 2 | . 1 . . 1 . . . . . . . . . . . . . Heat Transferred 1517 | . 481 . 407 185 370 74 . . . . . . . . . . . Parts Sabotaged . | . . . . . . . . . . . . . . . . . . Parts Stolen . | . . . . . . . . . . . . . . . . . . Parts Stripped . | . . . . . . . . . . . . . . . . . . Power Chain Reactions . | . . . . . . . . . . . . . . . . . . Alert | -11 -10 -10 -10 -9 -8 -7 -7 -7 -7 -6 -6 -6 -6 -6 -6 -6 -5 ------- Run | Yrd Mat Min Exi Min Mat Fac Low Low Zio Pro Fac Was Fac Ext Cet Arc Fac Peak Influence 598 | . 205 53 . 56 408 598 . . . . 112 95 446 229 194 137 140 Initial 185 | . . . . . 21 185 . . . . 107 39 66 177 104 77 40 Average 125 | . 52 6 . 35 251 244 . . . . 107 68 174 121 132 106 79 Maximum Alert Level 2 | . 1 . . . 2 2 . . . . . . 2 1 . . . Low Security (%) 75 | 100 94 100 . 100 39 34 . . . . 100 100 70 96 100 100 100 Level 1 16 | . 5 . . . 35 41 . . . . . . 26 3 . . . Level 2 8 | . . . . . 25 23 . . . . . . 3 . . . . Level 3 . | . . . . . . . . . . . . . . . . . . Level 4 . | . . . . . . . . . . . . . . . . . . Level 5 . | . . . . . . . . . . . . . . . . . . High Security . | . . . . . . . . . . . . . . . . . . Max Security . | . . . . . . . . . . . . . . . . . . Squads Dispatched 42 | . 3 . . . 4 17 . . . . 1 . 10 5 . . 2 Investigation 25 | . 1 . . . 1 11 . . . . 1 . 7 3 . . 1 Extermination 4 | . . . . . . 3 . . . . . . 1 . . . . Reinforcement 10 | . 2 . . . . 3 . . . . . . 2 2 . . 1 Assault . | . . . . . . . . . . . . . . . . . . Garrison 3 | . . . . . 3 . . . . . . . . . . . . Intercept . | . . . . . . . . . . . . . . . . . . Searches Triggered 1 | . . . . . . 1 . . . . . . . . . . . Construction Impeded 2 | . . . . . . 1 . . . . . . . 1 . . . Haulers Reinforced . | . . . . . . . . . . . . . . . . . . Active Scanning Responses . | . . . . . . . . . . . . . . . . . . Cargo Convoy Interrupts . | . . . . . . . . . . . . . . . . . . Stealth | -11 -10 -10 -10 -9 -8 -7 -7 -7 -7 -6 -6 -6 -6 -6 -6 -6 -5 --------- Run | Yrd Mat Min Exi Min Mat Fac Low Low Zio Pro Fac Was Fac Ext Cet Arc Fac Distress Signals 13 | . 2 . . . 1 4 . . . . . . . 2 2 . 2 Communications Jammed . | . . . . . . . . . . . . . . . . . . Distress Signals . | . . . . . . . . . . . . . . . . . . Times Spotted 185 | . 28 2 . 2 17 35 10 . . 12 . 3 27 26 9 4 10 Peak Tracking Total 16 | . 3 1 . 2 7 5 4 . . 6 . 3 8 16 5 4 7 Tactical Retreats 28 | . . . . . 1 9 1 . . 2 . . 7 3 2 . 3 Traps | -11 -10 -10 -10 -9 -8 -7 -7 -7 -7 -6 -6 -6 -6 -6 -6 -6 -5 ------- Run | Yrd Mat Min Exi Min Mat Fac Low Low Zio Pro Fac Was Fac Ext Cet Arc Fac Traps Triggered 5 | . . . . . 1 1 . . . . 1 . 1 1 . . . Indirectly . | . . . . . . . . . . . . . . . . . . Trap Hack Attempts . | . . . . . . . . . . . . . . . . . . Triggered . | . . . . . . . . . . . . . . . . . . Disarmed 8 | . 3 . . . . . . . . . 5 . . . . . . Reprogrammed . | . . . . . . . . . . . . . . . . . . Reused . | . . . . . . . . . . . . . . . . . . Traps Extracted . | . . . . . . . . . . . . . . . . . . Installed . | . . . . . . . . . . . . . . . . . . Triggered 5 | . . 2 . . . . 2 . . 1 . . . . . . . Machines | -11 -10 -10 -10 -9 -8 -7 -7 -7 -7 -6 -6 -6 -6 -6 -6 -6 -5 ---------- Run | Yrd Mat Min Exi Min Mat Fac Low Low Zio Pro Fac Was Fac Ext Cet Arc Fac Machines Disabled 4 | . . . . . 1 1 . . . . . . . . 2 . . Max in Single Turn 1 | . . . . . . 1 . . . . . . . . 1 . . Garrison Access 4 | . . . . . . 3 . . . . . . . . . . 1 Machines Repaired . | . . . . . . . . . . . . . . . . . . Machines Dismantled . | . . . . . . . . . . . . . . . . . . Machines Sabotaged . | . . . . . . . . . . . . . . . . . . Overloaded Fab Kills . | . . . . . . . . . . . . . . . . . . Hacking | -11 -10 -10 -10 -9 -8 -7 -7 -7 -7 -6 -6 -6 -6 -6 -6 -6 -5 --------- Run | Yrd Mat Min Exi Min Mat Fac Low Low Zio Pro Fac Was Fac Ext Cet Arc Fac Machines Accessed 58 | . 3 . 3 . 1 23 . . . . 3 . 11 10 2 . 2 Terminals 39 | . 3 . . . . 14 . . . . 3 . 7 10 2 . . Fabricators 7 | . . . . . . 4 . . . . . . 2 . . . 1 Repair Stations . | . . . . . . . . . . . . . . . . . . Recycling Units . | . . . . . . . . . . . . . . . . . . Scanalyzers 5 | . . . . . 1 2 . . . . . . 2 . . . . Garrison Access 4 | . . . . . . 3 . . . . . . . . . . 1 Total Hacks 216 | . 9 . 26 . 5 82 . . . . 15 . 42 27 6 . 4 Successful 138 | . 3 . 26 . 5 47 . . . . 10 . 22 18 5 . 2 Failed 78 | . 6 . . . . 35 . . . . 5 . 20 9 1 . 2 Catastrophic 12 | . . . . . . 6 . . . . 1 . 4 1 . . . Database Lockouts . | . . . . . . . . . . . . . . . . . . Manual 77 | . . . 1 . . 35 . . . . 10 . 24 7 . . . Terminals 146 | . 9 . . . . 58 . . . . 15 . 31 27 6 . . Fabricators 21 | . . . . . . 11 . . . . . . 7 . . . 3 Repair Stations . | . . . . . . . . . . . . . . . . . . Recycling Units . | . . . . . . . . . . . . . . . . . . Scanalyzers 19 | . . . . . 5 10 . . . . . . 4 . . . . Garrison Access 4 | . . . . . . 3 . . . . . . . . . . 1 Terminal Hacks 70 | . 3 . 26 . . 14 . . . . 7 . 4 11 5 . . Record 30 | . . . 25 . . . . . . . . . . . 5 . . Part Schematic 2 | . . . . . . . . . . . 1 . 1 . . . . Prototype ID Bank 1 | . . . . . . 1 . . . . . . . . . . . Open Door 4 | . . . . . . . . . . . . . . 4 . . . Branch Access Points 4 | . . . . . . 1 . . . . 1 . 1 1 . . . Emergency Access Points 2 | . . . . . . 2 . . . . . . . . . . . Fabricator Index 1 | . . . . . . 1 . . . . . . . . . . . Alert Level 1 | . . . . . . 1 . . . . . . . . . . . Unreport Threat 7 | . . . . . . 4 . . . . . . 1 2 . . . Locate Traps 4 | . . . . . . 1 . . . . . . 1 2 . . . Disarm Traps 3 | . 2 . . . . . . . . . 1 . . . . . . Surveillance Status 1 | . . . . . . 1 . . . . . . . . . . . Recall Investigation 2 | . . . . . . 1 . . . . 1 . . . . . . Hauler Manifests 3 | . . . . . . 1 . . . . 1 . . 1 . . . Registered Components 2 | . 1 . . . . . . . . . 1 . . . . . . Zone Layout 2 | . . . . . . . . . . . 1 . . 1 . . . Derelict Proto ID Bank 1 | . . . 1 . . . . . . . . . . . . . . Fabricator Hacks 12 | . . . . . . 7 . . . . . . 4 . . . 1 Load Schematic 7 | . . . . . . 4 . . . . . . 2 . . . 1 Build 5 | . . . . . . 3 . . . . . . 2 . . . . Repair Station Hacks . | . . . . . . . . . . . . . . . . . . Recycling Unit Hacks . | . . . . . . . . . . . . . . . . . . Scanalyzer 18 | . . . . . 5 9 . . . . . . 4 . . . . Insert Component 9 | . . . . . 3 4 . . . . . . 2 . . . . Analyze 9 | . . . . . 2 5 . . . . . . 2 . . . . Garrison Access Hacks 4 | . . . . . . 3 . . . . . . . . . . 1 Seal Access 4 | . . . . . . 3 . . . . . . . . . . 1 Unauthorized Hacks 33 | . . . . . . 14 . . . . 3 . 9 7 . . . Terminals 33 | . . . . . . 14 . . . . 3 . 9 7 . . . Assimilate 4 | . . . . . . 1 . . . . . . 2 1 . . . Botnet 29 | . . . . . . 13 . . . . 3 . 7 6 . . . Fabricators . | . . . . . . . . . . . . . . . . . . Repair Stations . | . . . . . . . . . . . . . . . . . . Recycling Units . | . . . . . . . . . . . . . . . . . . Scanalyzers . | . . . . . . . . . . . . . . . . . . Garrison Access . | . . . . . . . . . . . . . . . . . . Data Cores Recovered 1 | . . . . . . 1 . . . . . . . . . . . Used 1 | . . . . . . 1 . . . . . . . . . . . Hacking Detections 38 | . 3 . . . 1 16 . . . . 3 . 8 5 1 . 1 Full Trace Events 24 | . 1 . . . . 11 . . . . 1 . 7 3 . . 1 Feedback Events . | . . . . . . . . . . . . . . . . . . Feedback Blocked 2 | . . . . . . 1 . . . . . . 1 . . . . Robot Schematics Acquired . | . . . . . . . . . . . . . . . . . . Robots Built . | . . . . . . . . . . . . . . . . . . Authchips . | . . . . . . . . . . . . . . . . . . Time . | . . . . . . . . . . . . . . . . . . Total Robot Build Rating . | . . . . . . . . . . . . . . . . . . Part Schematics Acquired 10 | . . . . . 2 4 . . . . 1 . 3 . . . . Parts Built 4 | . . . . . . 3 . . . . . . 1 . . . . Authchips . | . . . . . . . . . . . . . . . . . . Time 313 | . . . . . . 219 . . . . . . 94 . . . . Total Part Build Rating 14 | . . . . . . 9 . . . . . . 5 . . . . Parts Repaired . | . . . . . . . . . . . . . . . . . . Time . | . . . . . . . . . . . . . . . . . . Parts Recycled . | . . . . . . . . . . . . . . . . . . Recycled Matter . | . . . . . . . . . . . . . . . . . . Retrieved Matter . | . . . . . . . . . . . . . . . . . . Retrieved Components . | . . . . . . . . . . . . . . . . . . Parts Scanalyzed 8 | . . . . . 2 4 . . . . . . 2 . . . . Part Schematics Acquired 8 | . . . . . 2 4 . . . . . . 2 . . . . Parts Damaged . | . . . . . . . . . . . . . . . . . . Bothacking | -11 -10 -10 -10 -9 -8 -7 -7 -7 -7 -6 -6 -6 -6 -6 -6 -6 -5 ------------ Run | Yrd Mat Min Exi Min Mat Fac Low Low Zio Pro Fac Was Fac Ext Cet Arc Fac Used RIF Installer . | . . . . . . . . . . . . . . . . . . Robots Hacked . | . . . . . . . . . . . . . . . . . . Non-combat . | . . . . . . . . . . . . . . . . . . Combat . | . . . . . . . . . . . . . . . . . . Robot Hacks Applied . | . . . . . . . . . . . . . . . . . . Relay Couplers Released . | . . . . . . . . . . . . . . . . . . Fabnet Peak Effective % . | . . . . . . . . . . . . . . . . . . Robots Rewired . | . . . . . . . . . . . . . . . . . . Allies Hacked . | . . . . . . . . . . . . . . . . . . Hacks Repelled . | . . . . . . . . . . . . . . . . . . Allies | -11 -10 -10 -10 -9 -8 -7 -7 -7 -7 -6 -6 -6 -6 -6 -6 -6 -5 -------- Run | Yrd Mat Min Exi Min Mat Fac Low Low Zio Pro Fac Was Fac Ext Cet Arc Fac Total Allies 32 | . . . . 2 . 1 . . 3 . . 19 1 6 . . . Largest Group 19 | . . . . 2 2 1 . . 3 . . 19 1 3 . . . Highest-Rated Group 702 | . . . . 45 45 26 . . 70 . . 702 23 76 . . . Highest-Rated Ally 50 | . . . . 31 31 26 . . 28 . . 50 23 31 . . . Total Orders . | . . . . . . . . . . . . . . . . . . Ally Attacks 101 | . . . . 9 18 . . . . . . 55 . 19 . . . Total Damage 3165 | . . . . 152 225 . . . . . . 2337 . 451 . . . Kills 13 | . . . . . 3 . . . . . . 4 . 6 . . . Allies Corrupted . | . . . . . . . . . . . . . . . . . . Allies Melted . | . . . . . . . . . . . . . . . . . . Intel | -11 -10 -10 -10 -9 -8 -7 -7 -7 -7 -6 -6 -6 -6 -6 -6 -6 -5 ------- Run | Yrd Mat Min Exi Min Mat Fac Low Low Zio Pro Fac Was Fac Ext Cet Arc Fac Robot Analysis Total . | . . . . . . . . . . . . . . . . . . Derelict Logs Recovered 9 | . . 2 . 1 . . 2 1 1 2 . . . . . . . Drone Launches . | . . . . . . . . . . . . . . . . . . Drone Recoveries . | . . . . . . . . . . . . . . . . . . Exploration | -11 -10 -10 -10 -9 -8 -7 -7 -7 -7 -6 -6 -6 -6 -6 -6 -6 -5 ------------- Run | Yrd Mat Min Exi Min Mat Fac Low Low Zio Pro Fac Was Fac Ext Cet Arc Fac Turns Passed 8209 | 60 1879 954 760 209 315 1953 197 47 186 157 196 37 471 224 215 47 302 Spaces Moved 10241 | 46 675 384 595 194 176 3124 426 187 714 526 535 114 1256 589 218 51 431 Core 13 | 12 . . . . . . . . . . . . . . . . 1 Treads 1028 | . 539 384 105 . . . . . . . . . . . . . . Legs 1633 | 34 136 . 490 194 176 373 . . . . . . . . 85 51 94 Wheels . | . . . . . . . . . . . . . . . . . . Hover 2273 | . . . . . . 2273 . . . . . . . . . . . Flight 5294 | . . . . . . 478 426 187 714 526 535 114 1256 589 133 . 336 Fastest Speed 25 | 50 120 240 90 90 90 25 25 25 25 25 25 25 25 26 26 90 35 Average Speed 63 | 101 241 240 116 90 101 42 25 25 25 25 25 25 27 27 66 90 58 Slowest Speed 350 | 120 260 240 240 90 105 118 25 25 25 98 25 25 104 32 184 90 350 Overloaded Moves . | . . . . . . . . . . . . . . . . . . Propulsion Burnouts . | . . . . . . . . . . . . . . . . . . Robots Hopped 33 | . . . . . . 2 2 . . . 6 . 8 13 . . 2 Cave-ins Triggered 3 | . . . . . . 1 . . . . . . . . 2 . . Exploration Rate (%) 56 | 3 98 81 92 55 16 67 57 44 77 71 9 82 32 81 72 68 20 Regions Visited 17 Branch Regions 10 Pre-discovered Areas 3 | . . . 1 1 . . . . 1 . . . . . . . . Known Exits Taken 10 | . . . . . 1 1 1 1 1 1 . . 1 1 1 1 . Unknown Exits Taken 5 | 1 1 1 1 1 . . . . . . . . . . . . . Scrap Searched 7 | . . 1 . . . . . 2 1 3 . . . . . . . Spaces Dug 126 | . . . . . . 86 . . . . 1 . 20 . 19 . . Terrain Destroyed 288 | . . 13 . . 2 107 27 . . 45 1 . 44 . 49 . . Melee 126 | . . . . . . 86 . . . . 1 . 20 . 19 . . Projectile . | . . . . . . . . . . . . . . . . . . AOE 162 | . . 13 . . 2 21 27 . . 45 . . 24 . 30 . . Terrain Rammed . | . . . . . . . . . . . . . . . . . . Walls Destroyed . | . . . . . . . . . . . . . . . . . . Machines Disabled . | . . . . . . . . . . . . . . . . . . Actions | -11 -10 -10 -10 -9 -8 -7 -7 -7 -7 -6 -6 -6 -6 -6 -6 -6 -5 --------- Run | Yrd Mat Min Exi Min Mat Fac Low Low Zio Pro Fac Was Fac Ext Cet Arc Fac Total 11371 | 59 804 411 630 216 244 3580 511 186 721 542 590 121 1335 630 261 51 479 Wait 438 | . 34 15 . 17 . 143 80 . 4 . 52 8 16 20 8 . 41 Move 10168 | 45 674 383 594 193 175 3119 421 186 713 525 523 113 1242 570 215 50 427 Hop 22 | . . . . . . 2 2 . . . 6 . 5 5 . . 2 Pick Up 105 | 8 15 5 8 . 14 31 3 . . 2 3 . 7 2 . 1 6 Fast Attach 1 | . . . . . . . . . 1 . . . . . . . . Attach 90 | 6 6 . . . 14 32 2 . 1 3 3 . 6 7 9 . 1 Detach 26 | . . . . . 3 14 1 . 1 2 1 . 3 . 1 . . Swap 73 | . 2 5 3 . 2 53 . . . 2 1 . 4 1 . . . Drop 53 | . 5 1 8 . . 28 . . 1 2 . . 4 1 1 . 2 Fire 150 | . 68 2 17 6 36 6 2 . . 6 . . 2 . 5 . . Melee 207 | . . . . . . 152 . . . . 1 . 28 6 20 . . Ram . | . . . . . . . . . . . . . . . . . . Kick . | . . . . . . . . . . . . . . . . . . Crush . | . . . . . . . . . . . . . . . . . . Escape Stasis 38 | . . . . . . . . . . . . . 18 18 2 . . Rewire . | . . . . . . . . . . . . . . . . . . Trap . | . . . . . . . . . . . . . . . . . . Miscellaneous . | . . . . . . . . . . . . . . . . . . Route ------- -11/Scrapyard -10/Materials (discovered 5 exits: [*Mat x3] / [*Min x2]) -10/Mines -10/Exiles (discovered 2 exits: [*Min x2]) -9/Mines -8/Materials (discovered 2 exits: *Fac x2) -7/Factory (discovered 4 exits: *Fac x2 / *Low x2) -7/Lower Caves -7/Lower Caves (discovered 2 exits: *Fac / *Zio) -7/Zion -6/Proximity Caves -6/Factory (discovered 5 exits: Fac / Low x2 / Ext x2) -6/Waste -6/Factory (discovered 4 exits: Low x2 / *Ext x2) -6/Extension (discovered 2 exits: *Fac / *Cet) -6/Cetus (discovered 2 exits: *Fac / *Arc) -6/Archives -5/Factory (discovered 3 exits: [*Fac] / *Upp x2) History --------- Turn | Location | Event 6 | -11/Scrapyard | Discovered new exit (range 15) 61 | -11/Scrapyard | Entered Materials 300 | -10/Materials | Build established: Mutant 425 | -10/Materials | Discovered new exit (range 12) 546 | -10/Materials | Discovered new exit (range 7) 759 | -10/Materials | Discovered new exit (range 9) 1180 | -10/Materials | Discovered new exit (range 14) 1805 | -10/Materials | Discovered new exit (range 10) 1940 | -10/Materials | Entered Mines 1992 | -10/Mines | Learned Materials terminal intel 1996 | -10/Mines | Joined a pair of Derelicts in attacking an 0b10 outpost 2022 | -10/Mines | Learned location of 1 exit from Materials 2342 | -10/Mines | Build established: Scavenger-Mutant 2539 | -10/Mines | Found a hidden stash of uninstalled traps 2831 | -10/Mines | Deemed a non-threat by the Exiles lab entrance 2831 | -10/Mines | Discovered new exit (range 5) 2894 | -10/Mines | Entered Exiles 2894 | -10/Exiles | Found Exiles lab destroyed 3132 | -10/Exiles | Opened EX-Vault 3144 | -10/Exiles | Found Prototype Leg 3147 | -10/Exiles | Found Prototype Leg 3148 | -10/Exiles | Identified Potential Leg (x2) 3235 | -10/Exiles | Learned location of Zion (-7) 3392 | -10/Exiles | Discovered new exit (range 14) 3449 | -10/Exiles | Build established: Mutant 3645 | -10/Exiles | Discovered new exit (range 11) 3654 | -10/Exiles | Entered Mines 3731 | -9/Mines | Core integrity fell below 50% 3778 | -9/Mines | Learned Materials emergency access door positions 3840 | -9/Mines | Discovered new exit (range 10) 3843 | -9/Mines | Learned location of Storage (-9) 3863 | -9/Mines | Entered Materials 3863 | -8/Materials | Accompanied by 2 allies 3863 | -8/Materials | Evolved 4 slots: Propulsion x2, Utility x2 3864 | -8/Materials | Identified exit to Factory 3866 | -8/Materials | Loaded intel: 12 terminal locations 3868 | -8/Materials | Led the pair of lost Derelicts to an unsafe place 3930 | -8/Materials | Garrison activated, responded to threat 4009 | -8/Materials | Lost 6 parts (2n1u3w) 4121 | -8/Materials | Discovered exit to Factory (range 9) 4178 | -8/Materials | Entered Factory 4178 | -7/Factory | Evolved 2 slots: Propulsion x1, Utility x1 4334 | -7/Factory | Discovered new exit (range 15) 4339 | -7/Factory | Identified exit to Lower Caves 4482 | -7/Factory | Build established: Hacker-Mutant 5106 | -7/Factory | Discovered new exit (range 4) 5107 | -7/Factory | Identified exit to Factory 5197 | -7/Factory | Discovered exit to Factory (range 16) 5314 | -7/Factory | Fabricated Hacking Suite? 5329 | -7/Factory | Fabricated Hacking Suite? 5376 | -7/Factory | Fabricated Hacking Suite? 5378 | -7/Factory | Search patrols dispatched 5436 | -7/Factory | Crushed by falling debris 6131 | -7/Factory | Entered Lower Caves 6196 | -7/Lower Caves | Build established: Hacker-Sprinter 6256 | -7/Lower Caves | Learned Factory garrison access intel 6283 | -7/Lower Caves | Learned 4 Factory zone layouts 6310 | -7/Lower Caves | Attracted the attention of an 0b10 checkpoint 6325 | -7/Lower Caves | Discovered new exit (range 12) 6327 | -7/Lower Caves | Identified exit to Lower Caves 6328 | -7/Lower Caves | Entered another Lower Caves area 6332 | -7/Lower Caves | Learned 4 Factory zone layouts 6335 | -7/Lower Caves | Discovered exit to Factory (range 6) 6372 | -7/Lower Caves | Discovered new exit (range 11) 6375 | -7/Lower Caves | Identified exit to Zion 6375 | -7/Lower Caves | Entered Zion 6380 | -7/Zion | Received a visual enhancement algorithm 6389 | -7/Zion | Discovered new exit (range 16) 6393 | -7/Zion | Identified exit to Proximity Caves 6432 | -7/Zion | Given A8's code to call for help 6446 | -7/Zion | Gained Derelict followers 6464 | -7/Zion | Learned location of Warlord (-4) 6469 | -7/Zion | Found Prototype Launcher 6469 | -7/Zion | Identified Gui. Missile Launcher 6561 | -7/Zion | Entered Proximity Caves 6635 | -6/Proximity Caves | Learned Factory emergency access door positions 6635 | -6/Proximity Caves | Learned location of 1 exit from Lower Caves 6716 | -6/Proximity Caves | Discovered exit to Factory (range 9) 6718 | -6/Proximity Caves | Entered Factory 6718 | -6/Factory | Evolved 2 slots: Utility x2 6719 | -6/Factory | Identified exit to Factory 6721 | -6/Factory | Loaded intel: 4 garrison access locations 6724 | -6/Factory | Identified exit to Lower Caves 6724 | -6/Factory | Identified exit to Extension 6807 | -6/Factory | Spotted B-75 Beast 6914 | -6/Factory | Sucked down chute 6914 | -6/Factory | Entered Waste 6916 | -6/Waste | Spotted C-40 Crusher 6918 | -6/Waste | Spotted C-40 Crusher 6919 | -6/Waste | Spotted C-40 Crusher 6923 | -6/Waste | Spotted C-40 Crusher 6927 | -6/Waste | Warlord forces began an assault 6938 | -6/Waste | Spotted C-40 Crusher 6944 | -6/Waste | Allies destroyed C-40 Crusher 6947 | -6/Waste | Discovered new exit (range 16) 6951 | -6/Waste | Identified exit to Factory 6951 | -6/Waste | Entered Factory 6975 | -6/Factory | Lost 3 allies 7030 | -6/Factory | Build established: Hacker-Scout 7307 | -6/Factory | Fabricated Adv. Sensor Array? 7422 | -6/Factory | Entered Extension 7446 | -6/Extension | Spotted B-75 Beast 7517 | -6/Extension | Identified exit to Cetus 7558 | -6/Extension | Rescued a captive Derelict 7568 | -6/Extension | Rescued a captive Derelict 7569 | -6/Extension | Rescued a captive Derelict 7579 | -6/Extension | Spotted B-75 Beast 7593 | -6/Extension | Rescued a captive Derelict 7596 | -6/Extension | Rescued a captive Derelict 7603 | -6/Extension | Rescued a captive Derelict 7613 | -6/Extension | Rescued a captive Derelict 7615 | -6/Extension | Lost 6 parts (1p3n2u) 7635 | -6/Extension | Lost 3 allies 7637 | -6/Extension | Discovered exit to Factory (range 10) 7646 | -6/Extension | Entered Cetus 7652 | -6/Cetus | Spotted Cetus Guard 7652 | -6/Cetus | Spotted Cetus Guard 7652 | -6/Cetus | Spotted Cetus Guard 7658 | -6/Cetus | Discovered exit to Factory (range 16) 7694 | -6/Cetus | Crushed by falling debris 7704 | -6/Cetus | Crushed by falling debris 7705 | -6/Cetus | Core integrity fell below 50% 7705 | -6/Cetus | System corruption reached 10% 7735 | -6/Cetus | Lost 7 parts (1p3n3u) 7808 | -6/Cetus | Discovered new exit (range 15) 7820 | -6/Cetus | Identified exit to Archives 7840 | -6/Cetus | Spotted Cetus Guard 7840 | -6/Cetus | Spotted Cetus Guard 7861 | -6/Cetus | Entered Archives 7889 | -6/Archives | Unable to access archive contents 7893 | -6/Archives | Discovered exit to Factory (range 13) 7894 | -6/Archives | Core integrity fell below 20% 7908 | -6/Archives | Entered Factory 7908 | -5/Factory | Evolved 2 slots: Propulsion x1, Utility x1 7909 | -5/Factory | Identified exit to Upper Caves 8043 | -5/Factory | Build established: Hacker-Mutant 8071 | -5/Factory | Discovered new exit (range 11) 8119 | -5/Factory | Discovered exit to Upper Caves (range 16) 8195 | -5/Factory | Core integrity fell below 50% 8205 | -5/Factory | Core integrity fell below 20% 8210 | -5/Factory | Destroyed by H-66 Slayer with Heavy Assault Rifle Last Messages --------------- 08185_ Slug penetrates Wall. 08188_ Wall collapses. 08188_ Slug penetrates Wall. 08190_ Penetrated by Slug. 08197_ Critical hit (Burn: +37). 08197_ Penetrated by Slug. 08200_ Critical hit (Burn: +37). 08200_ Penetrated by Slug. 08200_ Slug penetrates Y-64 Sentinel. 08200_ Penetrated by Slug. 08202_ Hacking Suite destroyed. 08203_ Imp. Signal Interpreter destroyed. 08203_ Penetrated by Slug. 08204_ ALERT: Security rotation in progress. 08204_ Penetrated by Slug. 08204_ S-27 Virus destroyed. 08205_ Penetrated by Slug. 08208_ Slug penetrates Manufacturing Mainframe. 08208_ Slug penetrates Wall. 08210_ Slug penetrates Manufacturing Mainframe. Map ----- +----------------------------------------------------+ | | | | | | | | | | | | | | | | | | | | | ?????????????????????????????????????????????????? | | ???????????????????????????????????????????????? | | ??????????????????????????????????????????????"""" | | ??????????????????????#???####??????????????? | | ????????????????????? ?? #??????????????"""""" | | ????????????????????? ?? #?????????????? | | ?????????????????????" "??" ###########??# """""" | | ????????????????????"" "?"" # = !#??# | | ??????????????????"""" """" #""" #??? "T" | | ??????????????????"""" """" #"T ! ########### | | ?????????????????? #""" + !! | | ????????????????? """" """" + """ # ! | | ????????????????# """" """" # ] """ # | | ????????????????# """"^"""" # """ # | | ????????????????# """"h =%h # # " "" | | ???????????# ; @Y[ ####+###### "R"" | | ????????????????###########;+## #??# """" | | ?????????????????????????# T" #?# ######## | | ??????????????????????+ " / | | ??????????????????????#### ### ## | | ?????????????????????????# ## #?###### | | ?????????????????????????# ########??????# | | ?????????????????????????# #?????????????# | | ?????????????????????????# #?????????????# | | ?????????????????????????# #?????????????# | | ????????????????????????? ??????????????# | | ???????????????????????? ??????????????# | | ???????????????????????? ??????????????# | | ??????????????????????? ??????????????# | | ?????????????????????? ??????????????# | | ??????????????????????? ???????????????###### | | ????????????????????????? ????????????????????? | | ?????????????????????????????????????????????????? | | ?????????????????????????????????????????????????? | | ?????????????????????????????????????????????????? | | ?????????????????????????????????????????????????? | | ?????????????????????????????????????????????????? | | ?????????????????????????????????????????????????? | | ?????????????????????????????????????????????????? | | ?????????????????????????????????????????????????? | +----------------------------------------------------+ Best States ------------- Heat Dissipation 40 Energy Generation 18 Energy Capacity 310 Matter Stores 300 Matter Capacity 300 Sight Range 16 Robot Scan Range 16 Terrain Scan Density 10 Additional Mass Support 9 Armor Coverage 150 Evasion (%) 65 Recoil Reduction 2 Offensive Hacking 40 Defensive Hacking 12 Item Schematics ----------------- Hacking Suite | -8/Materials | Scanalyzed Mak. System Shield | -8/Materials | Scanalyzed Imp. Light Armor Plating | -7/Factory | Scanalyzed Hcp. Storage Unit | -7/Factory | Scanalyzed Structural Scanner | -7/Factory | Scanalyzed Hvy. Missile Launcher | -7/Factory | Scanalyzed Cld. VTOL Module | -6/Factory | Hacked Adv. Weight Redist. System | -6/Factory | Scanalyzed Xenon Bombardment Thruster | -6/Factory | Scanalyzed Adv. Sensor Array | -6/Factory | Hacked Robot Schematics ------------------ None Fabricated ------------ Hacking Suite | x1 | -7/Factory Hacking Suite | x1 | -7/Factory Hacking Suite | x1 | -7/Factory Adv. Sensor Array | x1 | -6/Factory Alien Tech Used ----------------- None Achievements -------------- Cya! root@ Challenges ------------ None Game ------ Seed MetafieldInsulatedStorage Manual? 0 Play Time 02:25:32 Cumulative 59.7 hours Start 2024.04.08 @ 12:47:53 End 2024.04.08 @ 18:07:08 Sessions 11 Manual Loads 0 Difficulty Rogue Special Mode None Game No. 73 Rogue 73 Adventurer 0 Explorer 0 Win Type - Total 1 Types 1/0/0/0/0/0/0/0/0 Lore% 34 Gallery% 35 Achievement% 37 Wizard Run 0 Options --------- Layout 1 ASCII 0 Keyboard 0 Movement Mouse Keybinds 0 Fullscreen 2 Font 32/Smallcaps Map View 50x40 Zoom Use 0% Tactical HUD 1 Map Filters NONE Filters NONE Steam 1 RUN: c8fb5511-6ef6-4642-b34e-ef711ff0d455